Workbook

Sheet Лист1
A1: Школа | C1: МБОУ "СОШ № 9" НМР РТ | F1: Согласование: | G1: должность | H1: Директор
A2: Типовое примерное меню приготавливаемых блюд | G2: фамилия | H2: А.И.Мухаметзянова
A3: Возрастная категория | E3: 7-11 лет | G3: дата | H3: 7 | I3: 11 | J3: 2025
H4: день | I4: месяц | J4: год
A5: Неделя | B5: День недели | C5: Прием пищи | D5: Раздел меню | E5: Блюда | F5: Вес блюда, г | G5: Белки | H5: Жиры | I5: Углеводы | J5: Калорийность | K5: № рецептуры | L5: Цена
A6: =#REF! ->  | B6: =#REF! ->  | C6: Итого за день: | F6: =#REF!+#REF! ->  | G6: =#REF!+#REF! ->  | H6: =#REF!+#REF! ->  | I6: =#REF!+#REF! ->  | J6: =#REF!+#REF! ->  | L6: =#REF!+#REF! -> 
A7: 2 | B7: 3 | C7: Завтрак | D7: фрукты | E7: Яблоки | F7: 100 | G7: 0.4 | H7: 0.4 | I7: 9.8 | J7: 47 | L7: 46.12
D8: гор.блюдо | E8: Каша пшенная молочная | F8: 200 | G8: 14.6 | H8: 17.67 | I8: 36.55 | J8: 355.5
D9: гор.напиток | E9: Чай с сахаром и лимоном | F9: 200 | G9: 0.13 | H9: 0.02 | I9: 8.2 | J9: 34.02
D10: хлеб бел. | E10: Батон нарезной | F10: 50 | G10: 3.75 | H10: 1.45 | I10: 25.7 | J10: 131
D13: итого | F13: =F7+F8+F9+F10 -> 550 | G13: =SUM(G7:G12) -> 18.88 | H13: =SUM(H7:H12) -> 19.54 | I13: =SUM(I7:I12) -> 80.25 | J13: =SUM(J7:J12) -> 567.52 | L13: =L7 -> 46.12
A14: =A7 -> 2 | B14: =B7 -> 3 | C14: Обед | D14: 1 блюдо | E14: Суп картофельный с вермешелью | F14: 200 | G14: 6.15 | H14: 7.47 | I14: 9.06 | J14: 204.6 | L14: 89.90
D15: 2 блюдо | E15: Котлеты из говядины с овощами | F15: 100 | G15: 10.58 | H15: 10.98 | I15: 16.21 | J15: 195.2
D16: гарнир | E16: Каша гречневая вязкая с маслом сливочным | F16: 153 | G16: 4.6 | H16: 7.19 | I16: 39.56 | J16: 165.3
D17: напиток | E17: Напиток из сухофруктов | F17: 200 | G17: 0.7 | H17: 0.1 | I17: 22.03 | J17: 92.9
D18: хлеб бел. | E18: Хлеб пшеничный | F18: 20 | G18: 1.52 | H18: 0.16 | I18: 9.84 | J18: 47
D19: хлеб черн. | E19: Хлеб ржаной | F19: 40 | G19: 2.64 | H19: 0.48 | I19: 15.84 | J19: 79.2
D22: итого | F22: =SUM(F14:F21) -> 713 | G22: =SUM(G14:G21) -> 26.19 | H22: =SUM(H14:H21) -> 26.38 | I22: =SUM(I14:I21) -> 112.54 | J22: =SUM(J14:J21) -> 784.20 | L22: =SUM(L14:L21) -> 89.90
